fUSD/lending_fUSD_20251226
["ID","MTS","AMOUNT","RATE_DAILY","PERIOD"]
[399859341,1766758249659,-500.0,0.00039452,10]
[399859342,1766758249669,-500.0,0.00039452,10]
[399859343,1766758249679,-2167.53,0.00039452,10]
[399859344,1766758249690,-544.62,0.00039452,10]
[399859345,1766758249700,-500.0,0.00039452,10]
[399859346,1766758249710,-500.0,0.00039452,10]
[399859347,1766758249720,-487.95,0.00039452,10]
[399859348,1766758249730,-10428.6,0.00039452,10]
[399859349,1766758249741,-500.0,0.00039452,10]
[399859350,1766758249752,-500.0,0.00039452,10]
[399859351,1766758249764,-500.0,0.00039452,10]
[399859353,1766758249775,-519.01,0.00039654,2]
[399859355,1766758249785,-7464.26,0.000397,30]
[399859357,1766758249795,-500.0,0.00039726,10]
[399859359,1766758249805,-500.0,0.00039726,10]
[399859361,1766758249815,-500.0,0.00039726,10]
[399859363,1766758249825,-2167.53,0.00039726,10]
[399859365,1766758249837,-544.62,0.00039726,10]
[399859367,1766758249847,-500.0,0.00039726,10]
[399859369,1766758249857,-500.0,0.00039726,10]
[399859371,1766758249867,-10428.6,0.00039726,10]
[399859373,1766758249878,-500.0,0.00039726,10]
[399859375,1766758249889,-500.0,0.00039726,10]
[399859377,1766758249899,-500.0,0.00039726,10]
[399859379,1766758249910,-1069.0,0.00039742,20]
[399859382,1766758249920,-2050.76,0.000398,14]
[399859384,1766758249930,-778.02,0.000398,14]
[399859386,1766758249941,-172.0,0.00039871,90]
[399859388,1766758249951,-328.0,0.00039871,90]
[399859390,1766758249962,-12705.7355186,0.0004,120]
[399859392,1766758249973,-500.0,0.0004,60]
[399859394,1766758249983,-2000.0,0.0004,120]
[399859395,1766758249994,-1117.31986145,0.0004,120]
[399859397,1766758250006,-25000.0,0.0004,120]
[399859398,1766758250017,-500.0,0.0004,10]
[399859399,1766758250028,-500.0,0.0004,10]
[399859400,1766758250037,-500.0,0.0004,10]
[399859401,1766758250048,-253.0,0.0004,30]
[399859402,1766758250058,-2167.53,0.0004,10]
[399859403,1766758250070,-544.62,0.0004,10]
[399859404,1766758250081,-1100.94,0.0004,120]
[399859405,1766758250091,-500.0,0.0004,10]
[399859406,1766758250101,-500.0,0.0004,10]
[399859407,1766758250110,-10428.6,0.0004,10]
[399859408,1766758250121,-500.0,0.0004,10]
[399859409,1766758250131,-500.0,0.0004,10]
[399859410,1766758250142,-500.0,0.0004,10]
[399859411,1766758250153,-1069.0,0.00040135,20]
[399859412,1766758250163,-368.694,0.00040269,2]
[399859413,1766758250174,-500.0,0.00040273,10]
[399859414,1766758250184,-500.0,0.00040273,10]
[399859415,1766758250195,-503.58160759,0.00040273,10]
[399859416,1766758250206,-2167.53,0.00040273,10]
[399859417,1766758250217,-544.62,0.00040273,10]
[399859418,1766758250229,-500.0,0.00040273,10]
[399859419,1766758250243,-500.0,0.00040273,10]
[399859420,1766758250254,-10428.6,0.00040273,10]
[399859421,1766758250265,-343.0456897,0.00040273,10]
[399859422,1766758250276,-500.0,0.00040273,10]
[399859423,1766758250287,-500.0,0.000405,30]
[399859424,1766758250298,-1069.0,0.00040529,20]
[399859425,1766758250309,-500.0,0.00040547,10]
[399859426,1766758250320,-500.0,0.00040547,10]
[399859427,1766758250331,-2167.53,0.00040547,10]
[399859428,1766758250346,-544.62,0.00040547,10]
[399859429,1766758250357,-500.0,0.00040547,10]
[399859430,1766758250368,-500.0,0.00040547,10]
[399859431,1766758250380,-10428.6,0.00040547,10]
[399859432,1766758250392,-2000.0,0.00040548,120]
[399859433,1766758250405,-4183.43,0.0004075,120]
[399859434,1766758250416,-150.0,0.00040807,120]
[399859435,1766758250427,-500.0,0.00040821,10]
[399859436,1766758250438,-500.0,0.00040821,10]
[399859437,1766758250450,-2167.53,0.00040821,10]
[399859438,1766758250461,-544.62,0.00040821,10]
[399859439,1766758250472,-500.0,0.00040821,10]
[399859440,1766758250482,-543.55632176,0.00040821,10]
[399859441,1766758250494,-10428.6,0.00040821,10]
[399859442,1766758250504,-150.0,0.00040882,120]
[399859443,1766758250515,-7464.26,0.000409,30]
[399859444,1766758250527,-500.0,0.00041,60]
[399859445,1766758250538,-253.0,0.00041,34]
[399859446,1766758250549,-500.0,0.00041054,14]
[399859447,1766758250561,-500.0,0.00041054,14]
[399859448,1766758250572,-500.0,0.00041054,14]
[399859449,1766758250583,-300.0,0.00041068,22]
[399859450,1766758250601,-392183.14210397,0.0004109,60]
[399859451,1766758250613,-500.0,0.00041095,60]
[399859452,1766758250624,-500.0,0.00041095,120]
[399859453,1766758250635,-2167.53,0.00041095,120]
[399859454,1766758250648,-544.62,0.00041095,120]
[399859455,1766758250660,-1100.94,0.00041095,120]
[399859456,1766758250672,-500.0,0.00041095,120]
[399859457,1766758250682,-10428.6,0.00041095,120]
[399859458,1766758250693,-305.81686939,0.00041096,2]
[399859459,1766758250705,-2000.0,0.00041096,120]
[399859460,1766758250716,-150.0,0.00041096,120]
[399859461,1766758250728,-150.0,0.00041096,2]
[399859462,1766758250738,-150.0,0.00041096,120]
[399859463,1766758250751,-150.0,0.00041096,2]
[399859464,1766758250765,-2689.0,0.00041096,120]
[399859465,1766758250775,-305.9516495,0.000411,120]
[399859466,1766758250785,-5018.29905618,0.000411,120]
[399859467,1766758250795,-151.17874512,0.00041123,120]
[399859468,1766758250808,-150.0,0.00041123,2]
[399859469,1766758250819,-2689.0,0.00041123,120]
[399859470,1766758250831,-150.0,0.00041123,120]
[399859471,1766758250845,-150.0,0.00041151,2]
[399859472,1766758250857,-200.0,0.00041151,120]
[399859473,1766758250869,-2689.0,0.00041151,120]
[399859474,1766758250881,-225.38136853,0.00041178,2]
[399859475,1766758250892,-2689.0,0.00041178,120]
[399859476,1766758250903,-2689.0,0.00041206,120]
[399859477,1766758250914,-2689.0,0.00041233,120]
[399859478,1766758250925,-2689.0,0.0004126,120]
[399859479,1766758250936,-2689.0,0.00041288,120]
[399859480,1766758250947,-10889.82677143,0.0004129,120]
[399859481,1766758250958,-2689.0,0.00041315,120]
[399859482,1766758250969,-2689.0,0.00041343,120]
[399859483,1766758250981,-150.0,0.00041367,120]
[399859484,1766758250992,-500.0,0.00041369,60]
[399859485,1766758251003,-500.0,0.00041369,120]
[399859486,1766758251015,-2167.53,0.00041369,120]
[399859487,1766758251027,-544.62,0.00041369,120]
[399859488,1766758251039,-500.0,0.00041369,120]
[399859489,1766758251051,-10428.6,0.00041369,120]
[399859490,1766758251063,-2689.0,0.0004137,120]
[399859491,1766758251074,-2689.0,0.00041397,120]
[399859492,1766758251085,-2689.0,0.00041425,120]
[399859493,1766758251096,-2689.0,0.00041452,120]
[399859494,1766758251110,-452.4234392,0.0004146,120]
[399859495,1766758251121,-2689.0,0.0004148,120]
[399859496,1766758251132,-500.0,0.000415,60]
[399859497,1766758251143,-2689.0,0.00041507,120]
[399859498,1766758251155,-2689.0,0.00041534,120]
[399859499,1766758251167,-2689.0,0.00041562,120]
[399859500,1766758251179,-2689.0,0.00041589,120]
[399859501,1766758251190,-2689.0,0.00041617,120]
[399859502,1766758251201,-500.0,0.00041643,60]
[399859503,1766758251213,-500.0,0.00041643,120]
[399859504,1766758251225,-2167.53,0.00041643,120]
[399859505,1766758251238,-544.62,0.00041643,120]
[399859506,1766758251249,-500.0,0.00041643,120]
[399859507,1766758251261,-10428.6,0.00041643,120]
[399859508,1766758251273,-2689.0,0.00041644,120]
[399859509,1766758251285,-2689.0,0.00041671,120]
[399859510,1766758251297,-2689.0,0.00041699,120]
[399859511,1766758251308,-150.0,0.00041726,120]
[399859512,1766758251319,-2695.46922588,0.00041726,120]
[399859513,1766758251331,-220.6636318,0.00041778,14]
[399859514,1766758251344,-220.66363175,0.00041778,14]
[399859515,1766758251356,-220.66363175,0.00041778,14]
[399859516,1766758251367,-220.66363175,0.00041778,14]
[399859517,1766758251377,-220.66363175,0.00041778,14]
[399859518,1766758251389,-1319.24,0.00041781,30]
[399859519,1766758251399,-7464.26,0.000418,30]
[399859520,1766758251410,-300.261857,0.00041877,108]
[399859521,1766758251421,-500.0,0.00041917,60]
[399859522,1766758251432,-500.0,0.00041917,120]
[399859523,1766758251442,-2167.53,0.00041917,120]
[399859524,1766758251454,-544.62,0.00041917,120]
[399859525,1766758251464,-500.0,0.00041917,120]
[399859526,1766758251475,-10428.6,0.00041917,120]
[399859527,1766758251485,-403.4,0.00041918,30]
[399859528,1766758251497,-150.0,0.00041918,30]
[399859529,1766758251507,-1220.11,0.00041918,30]
[399859530,1766758251517,-301.04,0.00041918,30]
[399859531,1766758251529,-150.0,0.00041918,30]
[399859532,1766758251540,-1220.66,0.00041918,30]
[399859533,1766758251550,-1220.66,0.00041918,30]
[399859534,1766758251562,-150.0,0.00041918,30]
[399859535,1766758251573,-1220.66,0.00041918,30]
[399859536,1766758251586,-150.0,0.00041918,30]
[399859537,1766758251598,-1220.66,0.00041918,30]
[399859538,1766758251611,-150.0,0.00041918,30]
[399859539,1766758251623,-150.0,0.00041948,120]
[399859540,1766758251633,-200.0,0.00042,2]
[399859541,1766758251643,-1010.0,0.00042,120]
[399859542,1766758251654,-966.87830071,0.00042,30]
[399859543,1766758251664,-1800.0,0.00042,5]
[399859544,1766758251674,-253.0,0.00042,37]
[399859545,1766758251684,-206.57582389,0.00042,120]
[399859546,1766758251695,-3032.17834157,0.00042052,30]
[399859547,1766758251705,-500.0,0.00042191,60]
[399859548,1766758251716,-500.0,0.00042191,120]
[399859549,1766758251727,-2167.53,0.00042191,120]
[399859550,1766758251738,-544.62,0.00042191,120]
[399859551,1766758251750,-1100.94,0.00042191,120]
[399859552,1766758251764,-500.0,0.00042191,120]
[399859553,1766758251775,-10428.6,0.00042191,120]
[399859554,1766758251787,-150.0,0.00042192,30]
[399859555,1766758251798,-416.27470116,0.0004231,120]
[399859556,1766758251809,-385.33728785,0.000424,120]
[399859557,1766758251819,-150.0,0.00042425,120]
[399859558,1766758251830,-500.0,0.00042465,60]
[399859559,1766758251840,-500.0,0.00042465,120]
[399859560,1766758251851,-2167.53,0.00042465,120]
[399859561,1766758251862,-544.62,0.00042465,120]
[399859562,1766758251872,-500.0,0.00042465,120]
[399859563,1766758251887,-10428.6,0.00042465,120]
[399859564,1766758251898,-200.0,0.00042466,120]
[399859565,1766758251908,-1108.92,0.00042468,120]
[399859566,1766758251920,-172.9884428,0.00042482,120]
[399859567,1766758251932,-500.0,0.00042482,30]
[399859568,1766758251943,-500.0,0.00042482,30]
[399859569,1766758251955,-500.0,0.00042482,120]
[399859570,1766758251967,-500.0,0.00042482,120]
[399859571,1766758251978,-250.0,0.00042482,30]
[399859572,1766758251989,-250.0,0.00042482,30]
[399859573,1766758252001,-250.0,0.00042482,120]
[399859574,1766758252012,-500.0,0.00042482,30]
[399859575,1766758252023,-358.3947287,0.00042482,120]
[399859576,1766758252034,-500.0,0.00042482,30]
[399859577,1766758252046,-500.0,0.00042482,120]
[399859578,1766758252056,-500.0,0.00042482,30]
[399859579,1766758252067,-500.0,0.00042482,120]
[399859580,1766758252079,-194.72792766,0.00042482,30]
[399859581,1766758252090,-202.51628378,0.00042482,120]
[399859582,1766758252102,-211.31137877,0.00042482,28]
[399859583,1766758252114,-247.17631935,0.00042482,2]
[399859584,1766758252125,-500.0,0.00042483,30]
[399859585,1766758252136,-500.0,0.00042483,30]
[399859586,1766758252148,-250.0,0.00042483,30]
[399859587,1766758252160,-250.0,0.00042483,30]
[399859588,1766758252171,-261.58626416,0.00042483,30]
[399859589,1766758252183,-250.0,0.00042483,30]
[399859590,1766758252195,-500.0,0.00042483,30]
[399859591,1766758252206,-500.0,0.00042483,30]
[399859592,1766758252217,-500.0,0.00042483,30]
[399859593,1766758252229,-187.78006525,0.00042483,30]
[399859594,1766758252246,-500.0,0.00042484,30]
[399859595,1766758252257,-500.0,0.00042484,30]
[399859596,1766758252270,-250.0,0.00042484,30]
[399859597,1766758252282,-250.0,0.00042484,30]
[399859598,1766758252293,-250.0,0.00042484,30]
[399859599,1766758252304,-250.0,0.00042484,30]
[399859600,1766758252315,-500.0,0.00042484,30]
[399859601,1766758252326,-500.0,0.00042484,30]
[399859602,1766758252337,-500.0,0.00042484,30]
[399859603,1766758252348,-181.08010149,0.00042484,30]
[399859604,1766758252359,-2000.0,0.00042485,3]
[399859605,1766758252370,-2000.0,0.00042485,3]
[399859606,1766758252381,-500.0,0.00042497,120]
[399859607,1766758252392,-500.0,0.00042497,120]
[399859608,1766758252403,-250.0,0.00042497,120]
[399859609,1766758252414,-250.0,0.00042497,120]
[399859610,1766758252424,-250.0,0.00042497,120]
[399859611,1766758252435,-250.0,0.00042497,120]
[399859612,1766758252446,-500.0,0.00042497,120]
[399859613,1766758252457,-500.0,0.00042497,120]
[399859614,1766758252469,-500.0,0.00042497,120]
[399859615,1766758252479,-174.61919141,0.00042497,120]
[399859616,1766758252490,-500.0,0.00042498,30]
[399859617,1766758252501,-500.0,0.00042498,30]
[399859618,1766758252512,-250.0,0.00042498,30]
[399859619,1766758252523,-250.0,0.00042498,30]
[399859620,1766758252534,-250.0,0.00042498,30]
[399859621,1766758252545,-250.0,0.00042498,30]
[399859622,1766758252556,-500.0,0.00042498,30]
[399859623,1766758252567,-500.0,0.00042498,30]
[399859624,1766758252578,-500.0,0.00042498,30]
[399859625,1766758252590,-168.3888056,0.00042498,30]
[399859626,1766758252605,-375.0,0.000425,120]
[399859627,1766758252616,-193.1,0.000425,14]
[399859628,1766758252627,-167.43,0.000425,30]
[399859629,1766758252638,-18100.89,0.000425,14]
[399859630,1766758252649,-1384.44448878,0.00042568,2]
[399859631,1766758252661,-289.79261364,0.00042568,70]
[399859632,1766758252671,-3843.51784073,0.00042568,2]
[399859633,1766758252682,-3659.57363066,0.00042568,4]
[399859634,1766758252693,-2237.05139688,0.00042575,31]
[399859635,1766758252704,-1835426.90251138,0.00042575,30]
[399859636,1766758252727,-39264.91320258,0.00042575,30]
[399859637,1766758252740,-1230.79128311,0.00042575,30]
[399859638,1766758252792,-151.0,0.00015316,2]
[399859639,1766758252803,-500.0,0.00040547,10]
[399859640,1766758252814,-500.0,0.00040821,10]
[399859641,1766758252824,-500.0,0.00041095,120]
[399859642,1766758252835,-500.0,0.00041369,120]
[399859643,1766758252847,-339.29691454,0.00041643,120]
[399859644,1766758252858,-1609419.10670293,0.00042575,30]
[399859645,1766758252868,-713.74827339,0.00042582,2]
[399859646,1766758252879,-375.0,0.000426,120]
[399859647,1766758252890,-172.73196759,0.000426,2]
[399859648,1766758252901,-244.09681745,0.000426,30]
[399859649,1766758252912,-159.02185341,0.00042632,8]
[399859650,1766758252926,-500.0,0.00042638,60]
[399859651,1766758252936,-500.0,0.00042638,60]
[399859652,1766758252951,-250.0,0.00042638,60]
[399859653,1766758252963,-250.0,0.00042638,60]
[399859654,1766758252974,-250.0,0.00042638,60]
[399859655,1766758252984,-250.0,0.00042638,60]
[399859656,1766758252995,-500.0,0.00042638,60]
[399859657,1766758253007,-500.0,0.00042638,60]
[399859658,1766758253018,-500.0,0.00042638,60]
[399859659,1766758253030,-265.39375366,0.00042638,60]
[399859660,1766758253042,-162.380719,0.00042638,60]
[399859661,1766758253052,-500.0,0.00042646,120]
[399859662,1766758253063,-500.0,0.00042646,120]
[399859663,1766758253075,-250.0,0.00042646,120]
[399859664,1766758253086,-250.0,0.00042646,120]
[399859665,1766758253098,-250.0,0.00042646,120]
[399859666,1766758253108,-250.0,0.00042646,120]
[399859667,1766758253119,-500.0,0.00042646,120]
[399859668,1766758253131,-500.0,0.00042646,120]
[399859669,1766758253146,-500.0,0.00042646,120]
[399859670,1766758253158,-250.0,0.00042646,120]
[399859671,1766758253170,-156.587,0.00042646,120]
[399859672,1766758253181,-357.15799591,0.00042646,120]
[399859673,1766758253192,-150.0,0.00042646,120]
[399859674,1766758253204,-220.66363175,0.00042678,14]
[399859675,1766758253216,-258.78336366,0.00042685,2]
[399859676,1766758253228,-796.02653009,0.00042697,30]
[399859677,1766758253239,-500.0,0.00042697,30]
[399859678,1766758253251,-500.0,0.00042697,30]
[399859679,1766758253262,-195.60924016,0.00042697,30]
[399859680,1766758253274,-250.0,0.00042697,30]
[399859681,1766758253284,-152.09829727,0.00042697,30]
[399859682,1766758253296,-250.0,0.00042697,30]
[399859683,1766758253308,-250.0,0.00042697,30]
[399859684,1766758253319,-250.0,0.00042697,30]
[399859685,1766758253330,-500.0,0.00042697,30]
[399859686,1766758253341,-1086.0,0.00042697,30]
[399859687,1766758253352,-500.0,0.00042697,30]
[399859688,1766758253364,-500.0,0.00042697,30]
[399859689,1766758253376,-250.0,0.00042697,30]
[399859690,1766758253388,-151.0,0.00042697,30]
[399859691,1766758253399,-197.26302207,0.00042697,30]
[399859692,1766758253412,-300.0,0.00042697,30]
[399859693,1766758253423,-578.20924308,0.00042697,30]
[399859694,1766758253435,-500.0,0.00042698,60]
[399859695,1766758253446,-500.0,0.00042698,60]
[399859696,1766758253458,-500.0,0.00042698,60]
[399859697,1766758253470,-163.0,0.000427,120]
[399859698,1766758253481,-150.0,0.000427,120]
[399859699,1766758253492,-150.0920574,0.000427,3]
[399859700,1766758253503,-37600.82475448,0.00042708,30]
[399859701,1766758253514,-37600.82475448,0.00042708,30]
[399859702,1766758253960,-37600.82475448,0.00042708,30]
[399859703,1766758253982,-37600.82475448,0.00042708,30]
[399859704,1766758253992,-500.0,0.00042739,60]
[399859705,1766758254003,-249.9088165,0.00042739,120]
[399859706,1766758254014,-2167.53,0.00042739,120]
[399859707,1766758254024,-544.62,0.00042739,120]
[399859708,1766758254035,-500.0,0.00042739,120]
[399859709,1766758254046,-10428.6,0.00042739,120]
[399859710,1766758254056,-2437.47,0.0004274,30]
[399859711,1766758254067,-2459.47,0.0004274,30]
[399859712,1766758254078,-152.79,0.00042747,120]
[399859713,1766758254089,-50000.0,0.00042784,30]
[399859714,1766758254100,-50000.0,0.00042784,31]
[399859715,1766758254111,-50000.0,0.00042784,32]
[399859716,1766758254121,-50000.0,0.00042784,33]
[399859717,1766758254131,-50000.0,0.00042784,34]
[399859718,1766758254141,-50000.0,0.00042784,35]
[399859719,1766758254152,-50000.0,0.00042784,36]
[399859720,1766758254162,-50000.0,0.00042784,37]
[399859721,1766758254172,-50000.0,0.00042784,38]
[399859722,1766758254182,-50000.0,0.00042784,39]
[399859723,1766758254192,-50000.0,0.00042784,30]
[399859724,1766758254202,-50000.0,0.00042784,31]
[399859725,1766758254213,-50000.0,0.00042784,32]
[399859726,1766758254223,-50000.0,0.00042784,33]
[399859727,1766758254233,-50000.0,0.00042784,34]
[399859728,1766758254243,-50000.0,0.00042784,35]
[399859729,1766758254252,-50000.0,0.00042784,36]
[399859730,1766758254263,-50000.0,0.00042784,37]
[399859731,1766758254273,-50000.0,0.00042784,38]
[399859732,1766758254283,-50000.0,0.00042784,39]
[399859733,1766758254294,-10011.85990844,0.00042785,2]
[399859734,1766758254303,-948976.48173276,0.00042785,7]
[399859735,1766758254322,-322.03359741,0.00042685,2]
[399859736,1766758254331,-2156.18563395,0.00042785,7]
[399859737,1766758254351,-282.075996,0.00042785,7]
[399859738,1766758254362,-262.362,0.00042785,7]
[399859739,1766758254403,-1220.66,0.00041918,30]
[399859740,1766758254415,-150.0,0.00041918,30]
[399859741,1766758254424,-1579.86835235,0.00042685,2]
[399859742,1766758254435,-1743.04638746,0.00042785,7]
[399859743,1766758254447,-462.28138314,0.00042785,7]
[399859744,1766758254459,-108258.31408894,0.00042785,7]
[399859745,1766758254470,-658.769994,0.00042785,7]
[399859746,1766758254542,-1875.80863469,0.00042785,7]
[399859747,1766758254554,-13861.54804547,0.00042785,7]
[399859827,1766759203228,10000.0,0.0003,120]
[399859869,1766759431777,-205.15644741,0.00013707,2]
[399859870,1766759431790,-1000.0,0.00013709,2]
[399859871,1766759431800,-300.0,0.00013989,2]
[399859872,1766759431810,-1200.0,0.00013989,2]
[399859873,1766759431820,-300.0,0.00013989,2]
[399859874,1766759431830,-2238.10239795,0.0001399,2]
[399859875,1766759431842,-511.71246314,0.0001399,2]
[399859876,1766759431892,-382.35999,0.0001399,2]
[399859877,1766759431905,-310.45938293,0.0001399,2]
[399859878,1766759431918,-1594.4736441,0.0001399,2]
[399859879,1766759431930,-1891.96778752,0.0001399,2]
[399859880,1766759431942,-329.24117934,0.0001399,2]
[399859881,1766759431954,-1292.2457146,0.0001399,2]
[399859882,1766759431967,-499.42980836,0.0001399,2]
[399859883,1766759432009,-1299.37628304,0.0001399,2]
[399859929,1766759437824,-1045.80767326,0.0001399,2]
[399859930,1766759437836,-4138.75381752,0.0001399,2]
[399859931,1766759437848,-2530.7709,0.0001399,2]
[399859932,1766759437860,-439.48628052,0.0001399,2]
[399859933,1766759437871,-2416.93348734,0.0001399,2]
[399859934,1766759437883,-1706.10212246,0.0001399,2]
[399859935,1766759437895,-3557.83562371,0.0001399,2]
[399859936,1766759437907,-3517.13058712,0.0001399,2]
[399859937,1766759437953,-10382.20550006,0.0001399,2]
[399859938,1766759437967,-1224.85801481,0.0001399,2]
[399859939,1766759437977,-1043.1454,0.0001407,2]
[399859940,1766759437987,-150.0,0.00014167,2]
[399859941,1766759437998,-324.76496267,0.0001417,2]
[399859942,1766759438009,-933.99,0.0001417,2]
[399859943,1766759438019,-500.0,0.0001417,2]
[399859944,1766759438029,-500.0,0.0001417,2]
[399859945,1766759438041,-500.0,0.0001417,2]
[399859946,1766759438051,-435.0169277,0.0001417,2]
[399859947,1766759438062,-500.0,0.0001417,2]
[399859948,1766759438073,-470.9790947,0.0001417,2]
[399859949,1766759438083,-500.0,0.0001417,2]
[399859950,1766759438094,-500.0,0.0001417,2]
[399859951,1766759438105,-534.14774107,0.0001417,2]
[399859952,1766759438116,-500.0,0.0001417,2]
[399859953,1766759438126,-500.0,0.0001417,2]
[399859954,1766759438136,-500.0,0.0001417,2]
[399859955,1766759438146,-500.0,0.0001417,2]
[399859956,1766759438156,-1000000.0,0.00014171,2]
[399859957,1766759438167,-22550.57086599,0.0001419,2]
[399859958,1766759438176,-184.89745645,0.0001429,2]
[399859959,1766759438187,-10283.72813825,0.0001439,2]
[399859960,1766759438198,-933.99,0.00014444,2]
[399859961,1766759438209,-22550.57086599,0.00014491,2]
[399859962,1766759438219,-7328.36,0.00014504,2]
[399859964,1766759438230,-999.99,0.00014504,2]
[399859966,1766759438239,-333.76,0.00014504,2]
[399859968,1766759438250,-9999.99,0.00014504,2]
[399859970,1766759438260,-150.99,0.00014504,2]
[399859972,1766759438270,-200.0,0.00014558,2]
[399859974,1766759438281,-184.89745642,0.00014663,2]
[399859975,1766759438293,-933.99,0.00014718,2]
[399859976,1766759438303,-18573.29034953,0.00014785,2]
[399859977,1766759438313,-22550.57086599,0.00014792,2]
[399859978,1766759438324,-933.99,0.00014992,2]
[399859979,1766759438335,-795.1232334,0.00015,14]
[399859980,1766759438345,-184.89745642,0.00015036,2]
[399859981,1766759438356,-250.0,0.00015078,2]
[399859982,1766759438368,-933.99,0.00015266,2]
[399859983,1766759438382,-255.0,0.00015286,2]
[399859984,1766759438392,-420.0,0.00015326,2]
[399859985,1766759438402,-323.0,0.00015326,2]
[399859986,1766759438412,-1200.0,0.00015388,2]
[399859987,1766759438423,-184.89745642,0.00015409,2]
[399859988,1766759438434,-933.99,0.0001554,2]
[399859989,1766759438445,-500.0,0.00015673,2]
[399859990,1766759438455,-500.0,0.00015673,2]
[399859991,1766759438466,-500.0,0.00015673,2]
[399859992,1766759438477,-500.0,0.00015673,2]
[399859993,1766759438488,-437.9862699,0.00015673,2]
[399859994,1766759438499,-500.0,0.00015673,2]
[399859995,1766759438511,-500.0,0.00015673,2]
[399859996,1766759438522,-506.22332556,0.00015673,2]
[399859997,1766759438534,-500.0,0.00015673,2]
[399859998,1766759438548,-631.05653438,0.00015673,2]
[399859999,1766759438561,-500.0,0.00015673,2]
[399860000,1766759438574,-184.89745642,0.00015781,2]
[399860001,1766759438585,-933.99,0.00015814,2]
[399860002,1766759438597,-205.98026615,0.000159,2]
[399860003,1766759438607,-805.49146536,0.00016,2]
[399860004,1766759438619,-3596766.2352386,0.00016,4]
[399860005,1766759438629,-526.62278413,0.00016,2]
[399860006,1766759438639,-161.01679871,0.00016,2]
[399860007,1766759438650,-933.99,0.00016088,2]
[399860008,1766759438660,-205.98026612,0.000161,2]
[399860009,1766759438670,-184.89745642,0.00016154,2]
[399860011,1766759438680,-5000.0,0.000162,5]
[399860012,1766759438691,-1000.0,0.00016221,2]
[399860013,1766759438701,-1000.0,0.00016221,2]
[399860014,1766759438710,-1000.0,0.00016221,2]
[399860015,1766759438720,-1000.0,0.00016221,2]
[399860016,1766759438730,-1000.0,0.00016221,2]
[399860017,1766759438740,-1000.0,0.00016221,2]
[399860018,1766759438749,-1000.0,0.00016221,2]
[399860019,1766759438758,-1000.0,0.00016221,2]
[399860020,1766759438769,-205.98026612,0.000163,2]
[399860021,1766759438779,-933.99,0.00016362,2]
[399860022,1766759438791,-286.43207648,0.00016482,2]
[399860023,1766759438801,-433.0,0.0001649,2]
[399860024,1766759438812,-205.98026612,0.000165,2]
[399860025,1766759438822,-184.89745642,0.00016527,2]
[399860026,1766759438832,-1000.0,0.00016552,2]
[399860027,1766759438842,-933.99,0.00016636,2]
[399860028,1766759438852,-205.98026612,0.000167,2]
[399860029,1766759438862,-500.0,0.00016768,2]
[399860030,1766759438872,-500.0,0.00016768,2]
[399860031,1766759438883,-1500.0,0.00016768,2]
[399860032,1766759438894,-500.0,0.00016768,2]
[399860033,1766759438904,-1500.0,0.00016768,2]
[399860034,1766759438914,-500.0,0.00016768,2]
[399860035,1766759438923,-500.0,0.00016768,2]